bitfinex-derivatives/quotes_ETHF0:USTF0_20240925
["timestamp","ask_amount","ask_price","bid_price","bid_amount"]
[1727304038825,0.38836,2575.1,2574.9,11.1972154]
[1727304039025,0.78016,2575.1,2574.9,11.1972154]
[1727304040334,0.38836,2575.0,2574.9,11.1972154]
[1727304040840,0.78016,2575.1,2574.9,11.1972154]
[1727304041335,0.3918,2575.1,2574.9,3.2078]
[1727304041645,0.3918,2575.1,2574.6,3.2078]
[1727304041646,3.8832,2575.0,2574.6,3.2078]
[1727304041939,3.41838,2575.0,2574.6,3.2078]
[1727304042129,3.41838,2575.0,2574.7,0.3884]
[1727304042329,0.38838,2574.9,2574.6,3.59621]
[1727304042529,0.38838,2574.9,2574.6,3.2078]
[1727304042831,0.38838,2574.9,2574.6,3.59622]
[1727304043037,0.3884,2574.8,2574.6,3.2078]
[1727304043235,3.03,2575.0,2574.4,0.4069]
[1727304043236,0.38843,2574.6,2574.4,0.4069]
[1727304043436,0.3934,2574.5,2574.2,0.78918]
[1727304043735,0.3934,2574.5,2574.3,8.19969836]
[1727304043940,3.41845,2574.4,2574.3,8.19969836]
[1727304044134,3.8848,2574.4,2573.7,0.3879]
[1727304044330,3.4234,2574.5,2573.9,0.4007]
[1727304044629,3.81184,2574.5,2574.0,8.61271789]
[1727304044830,4.20834,2574.5,2574.0,8.61271789]
[1727304045025,4.20834,2574.5,2574.0,0.38851]
[1727304045230,3.03,2574.2,2573.5,3.2078]
[1727304045433,3.03,2574.2,2573.7,0.391]
[1727304045642,3.41851,2574.1,2573.8,8.23270449]
[1727304045828,0.79052,2574.0,2573.7,0.391]
[1727304046137,0.402,2574.0,2573.8,8.23270449]
[1727304046440,0.79053,2574.0,2573.8,8.23270449]
[1727304046740,0.79053,2574.0,2573.7,0.391]
[1727304047037,0.402,2574.0,2573.5,3.2078]
[1727304047337,0.402,2574.0,2573.6,8.3269231]
[1727304047641,0.402,2574.0,2573.6,8.7154931]
[1727304048032,0.402,2574.0,2573.6,8.3269231]
[1727304048231,0.402,2574.0,2573.7,0.38856]
[1727304048433,0.402,2574.0,2573.6,8.7154931]
[1727304049231,0.402,2574.0,2573.7,0.38856]
[1727304051632,0.402,2574.0,2573.6,8.3269231]
[1727304051834,0.402,2574.0,2573.7,0.38855]
[1727304052345,0.4085,2574.2,2573.6,11.3569231]
[1727304052644,0.79699,2574.2,2573.6,11.7603231]
[1727304053241,0.79699,2574.2,2573.9,0.38852]
[1727304054134,3.2078,2574.3,2573.8,3.03]
[1727304054440,3.2078,2574.3,2573.9,1.18082]
[1727304054740,0.38849,2574.2,2573.9,0.78562]
[1727304054936,3.2078,2574.3,2574.1,0.3885]
[1727304055434,3.59627,2574.3,2574.0,0.3885]
[1727304055641,3.59627,2574.3,2574.1,0.3885]
[1727304057542,3.2078,2574.6,2574.0,3.03]
[1727304057746,0.38844,2574.5,2574.3,0.38846]
[1727304058839,0.38844,2574.5,2574.0,11.03437176]
[1727304060047,0.38844,2574.5,2574.3,0.38847]
[1727304061452,3.2078,2574.6,2574.0,11.03437176]
[1727304061641,1.2103,2574.8,2574.1,3.5763]
[1727304061841,0.38844,2574.6,2574.4,0.38845]
[1727304062242,3.41842,2574.7,2574.2,8.64338074]
[1727304062442,0.38843,2574.6,2574.4,0.38845]
[1727304062651,3.03,2574.5,2574.2,8.26948074]
[1727304062957,3.03,2574.5,2574.2,0.38848]
[1727304062958,0.38846,2574.4,2574.2,0.38848]
[1727304063154,0.38847,2574.3,2574.1,0.38849]
[1727304063541,0.38847,2574.3,2574.2,8.26788877]
[1727304063742,0.38846,2574.4,2574.2,8.26788877]
[1727304063942,0.4058,2574.3,2574.2,8.26788877]
[1727304064142,0.79427,2574.3,2574.2,8.26788877]
[1727304064549,0.79427,2574.3,2574.1,8.36498578]
[1727304064744,0.4058,2574.3,2574.1,0.3885]
[1727304065140,0.4058,2574.3,2574.2,7.97648578]
[1727304065548,0.4058,2574.3,2574.2,8.36496578]
[1727304065854,3.59626,2574.4,2574.2,0.38848]
[1727304066060,3.2078,2574.4,2574.2,0.38848]
[1727304066245,3.2078,2574.4,2574.2,8.64980277]
[1727304067459,3.2078,2574.4,2574.3,0.38847]
[1727304067647,3.2078,2574.4,2574.3,0.77267]
[1727304070351,0.4058,2574.7,2574.4,0.38844]
[1727304070554,0.4058,2574.7,2574.5,0.38843]
[1727304070755,0.4058,2574.7,2574.6,0.38842]
[1727304071140,0.4058,2574.7,2574.3,0.781]
[1727304071340,3.03,2574.4,2574.3,0.3842]
[1727304071746,3.41845,2574.4,2574.3,0.3842]
[1727304071952,3.82535,2574.4,2574.3,0.3842]
[1727304072347,3.82535,2574.4,2574.1,3.59629]
[1727304072651,3.82535,2574.4,2574.3,8.27161071]
[1727304073056,3.82535,2574.4,2574.1,3.99219]
[1727304073557,1.35965,2574.3,2574.2,8.27161071]
[1727304073757,1.35965,2574.3,2573.7,0.406]
[1727304073758,0.38854,2573.9,2573.7,0.3959]
[1727304074058,0.3846,2574.2,2573.9,0.38852]
[1727304074549,0.77309,2574.2,2573.9,0.38852]
[1727304074949,0.3846,2574.2,2573.8,0.3818]
[1727304075442,0.3846,2574.2,2573.9,0.38852]
[1727304075647,0.77309,2574.2,2574.0,0.38851]
[1727304076049,3.4146,2574.2,2573.8,0.3818]
[1727304076255,0.38851,2574.1,2573.8,0.77033]
[1727304076442,0.38856,2573.8,2573.5,0.38859]
[1727304076647,0.3716,2573.7,2573.6,0.38858]
[1727304076857,3.59632,2574.0,2573.7,0.38855]
[1727304077052,3.59632,2574.0,2573.7,0.78545]
[1727304077262,0.38854,2573.9,2573.7,0.3969]
[1727304077457,0.78714,2573.9,2573.7,0.3969]
[1727304077962,0.3986,2573.9,2573.7,0.78546]
[1727304078156,0.78713,2573.9,2573.7,0.78546]
[1727304078356,0.3986,2573.9,2573.8,0.38855]
[1727304078553,0.3986,2573.9,2573.7,0.3969]
[1727304078855,3.2078,2574.0,2573.8,0.38855]
[1727304079055,3.7703,2574.2,2573.8,0.38855]
[1727304079360,0.3885,2574.1,2573.8,0.38855]
[1727304079652,0.38852,2574.0,2573.8,0.38855]
[1727304082260,0.38852,2574.0,2573.8,0.38854]
[1727304082663,2.24091783,2574.2,2573.7,0.3969]
[1727304082863,0.76009,2574.2,2574.0,0.38851]
[1727304083064,0.76009,2574.2,2574.1,0.3885]
[1727304083263,0.3716,2574.2,2574.1,0.3885]
[1727304085469,1.87221783,2574.2,2574.1,0.3885]
[1727304085663,1.87221783,2574.2,2573.8,8.48209082]
[1727304085664,8.78701783,2574.2,2573.8,8.48209082]
[1727304085864,3.59632,2574.0,2573.9,0.38853]
[1727304086160,3.59632,2574.0,2573.8,8.87063082]
[1727304087364,3.2078,2574.0,2573.8,8.87063082]
[1727304087559,3.59632,2574.0,2573.8,8.87063082]
[1727304089253,3.2078,2574.0,2573.8,8.11339082]
[1727304089450,0.4074,2573.9,2573.8,8.11339082]
[1727304090258,0.4074,2573.9,2573.8,8.50194082]
[1727304090667,0.4074,2573.9,2573.8,8.11339082]
[1727304090961,0.79593,2573.9,2573.8,8.11339082]
[1727304091265,2.29654783,2573.9,2573.8,8.11339082]
[1727304091461,2.29655783,2573.9,2573.7,0.78546]
[1727304092467,1.90801783,2573.9,2573.8,0.38855]
[1727304093073,2.29654783,2573.9,2573.8,0.38855]
[1727304093576,1.90801783,2573.9,2573.8,0.38855]
[1727304094168,0.4074,2573.9,2573.8,0.38855]
[1727304095072,0.79593,2573.9,2573.8,0.38855]
[1727304095366,0.4074,2573.9,2573.8,0.38855]
[1727304095569,0.79593,2573.9,2573.8,0.38855]
[1727304096065,0.38855,2573.8,2573.7,0.78545]
[1727304096463,0.38855,2573.8,2573.6,1.024]
[1727304096464,5.90936783,2573.9,2573.5,0.3906]
[1727304096657,0.3761,2573.7,2573.6,0.38858]
[1727304096861,0.4071,2573.8,2573.7,0.38856]
[1727304097168,1.90801783,2573.9,2573.8,0.38855]
[1727304097763,2.29654783,2573.9,2573.8,0.38855]
[1727304098160,5.43822378,2573.9,2573.3,1.39405172]
[1727304098368,0.38859,2573.5,2573.4,0.38859]
[1727304098567,0.38859,2573.5,2573.4,8.50363759]
[1727304099072,0.77148,2573.6,2573.4,8.50363759]
[1727304099368,0.77148,2573.6,2573.5,0.38859]
[1727304099571,0.76139,2573.5,2573.4,8.11504759]
[1727304099775,0.76139,2573.5,2573.2,0.38863]
[1727304099776,0.38863,2573.3,2573.2,0.38863]
[1727304100075,0.38863,2573.3,2573.2,8.66770837]
[1727304100501,0.38861,2573.4,2573.2,8.66770837]
[1727304100773,0.38862,2573.3,2573.2,8.27906837]
[1727304101271,3.03,2573.4,2573.2,8.27906837]
[1727304101574,3.41862,2573.4,2573.2,8.66770837]
[1727304101779,0.38862,2573.3,2573.2,8.27906837]
[1727304103178,3.41862,2573.3,2573.2,8.27906837]
[1727304103373,3.41862,2573.3,2572.7,0.38871]
[1727304103374,8.42910599,2573.3,2572.7,0.38871]
[1727304103573,0.38869,2572.9,2572.7,0.76921]
[1727304103878,3.2078,2573.1,2573.0,0.38867]
[1727304104176,3.41864,2573.2,2573.0,0.38866]
[1727304104578,0.4078,2573.1,2573.0,0.38866]
[1727304105273,0.4078,2573.1,2572.8,8.02172893]
[1727304105476,0.4078,2573.1,2572.9,0.38868]
[1727304105670,0.79646,2573.1,2572.8,8.41041893]
[1727304106373,0.79646,2573.1,2572.9,0.38868]
[1727304106878,0.79646,2573.1,2572.6,3.2078]
[1727304106879,0.38872,2572.7,2572.5,0.3968]
[1727304107179,0.38872,2572.7,2572.4,0.78955]
[1727304107180,3.2078,2573.0,2572.6,8.26379712]
[1727304107371,3.59647,2573.0,2572.8,0.38869]
[1727304107683,3.59647,2573.0,2572.7,0.3887]
[1727304107992,3.4378,2573.1,2572.4,0.3773]
[1727304107993,0.3724,2572.9,2572.4,0.3773]
[1727304108163,3.03,2572.8,2572.6,0.38873]
[1727304108362,3.4187,2572.8,2572.6,8.78730735]
[1727304108871,0.7716,2572.9,2572.8,0.3887]
[1727304109774,0.3724,2572.9,2572.8,0.3887]
[1727304109971,0.4078,2573.1,2573.0,0.38867]
[1727304110278,0.79646,2573.1,2572.9,0.4024]
[1727304110484,0.79646,2573.1,2572.9,0.79108]
[1727304110485,0.3993,2573.0,2572.9,0.79108]
[1727304111479,3.99564,2573.2,2573.0,0.38867]
[1727304111781,3.2078,2573.2,2573.1,0.38865]
[1727304112576,6.62638,2573.6,2572.9,3.6102]
[1727304112775,1.1848,2573.5,2573.2,0.38863]
[1727304113177,0.7962,2573.5,2573.3,0.38862]
[1727304113577,3.03,2573.4,2573.2,0.38863]
[1727304114376,3.03,2573.4,2573.3,0.38862]
[1727304116376,0.7962,2573.5,2573.4,0.38861]
[1727304117371,3.8262,2573.5,2572.9,0.4024]
[1727304117583,0.38861,2573.4,2573.2,0.38863]
[1727304117782,0.79131,2573.4,2573.2,0.38863]
[1727304119077,0.4027,2573.4,2573.3,0.38862]
[1727304120382,0.79131,2573.4,2573.2,0.38863]
[1727304120584,0.79131,2573.4,2573.2,0.38862]
[1727304120785,0.79131,2573.4,2573.3,0.38862]
[1727304121380,0.79131,2573.4,2573.2,0.38862]
[1727304122276,0.79131,2573.4,2573.0,7.97316729]
[1727304122679,0.79131,2573.4,2573.2,0.38863]
[1727304122884,0.4042,2573.5,2573.0,8.94481729]
[1727304123191,0.7814,2573.5,2573.4,0.38861]
[1727304124591,0.7814,2573.5,2573.0,8.94481729]
[1727304124592,1.16999,2573.5,2573.0,8.94481729]
[1727304124794,4.19999,2573.5,2573.0,8.94481729]
[1727304124984,4.19999,2573.5,2573.4,0.38861]
[1727304125179,0.38861,2573.4,2573.0,7.97316729]
[1727304125390,3.41862,2573.3,2572.9,3.6102]
[1727304125688,3.41862,2573.3,2573.2,0.38864]
[1727304125889,3.41862,2573.3,2573.1,0.38864]
[1727304126084,0.38864,2573.2,2573.1,0.38864]
[1727304126291,3.03,2573.3,2573.1,0.38864]
[1727304126491,3.41863,2573.3,2573.1,0.38864]
[1727304126676,3.41863,2573.3,2573.1,0.38865]
[1727304126677,0.38864,2573.2,2573.1,0.38865]
[1727304126877,0.38864,2573.2,2573.0,8.77162617]
[1727304127189,0.38867,2573.0,2572.9,0.4024]
[1727304127487,0.38871,2572.8,2572.3,1.00985172]
[1727304127785,0.38871,2572.8,2572.6,8.58007807]
[1727304128190,0.38871,2572.8,2572.4,8.57645807]
[1727304128191,0.394,2572.9,2572.8,0.3887]
[1727304128582,0.78268,2572.9,2572.7,0.3887]
[1727304128886,0.394,2572.9,2572.8,0.3851]
[1727304129089,0.394,2572.9,2572.8,0.7738]
[1727304129385,0.3887,2572.8,2572.6,8.61437412]
[1727304129587,0.38871,2572.7,2572.6,0.3937]
[1727304129887,0.38871,2572.7,2572.6,0.78243]
[1727304129888,0.76061,2572.7,2572.6,0.78243]
[1727304130091,0.78269,2572.9,2572.6,0.78243]
[1727304130287,0.78269,2572.9,2572.7,0.3887]
[1727304130787,0.3887,2572.8,2572.7,0.3887]
[1727304131680,0.3887,2572.8,2572.6,0.78242]
[1727304132282,0.38871,2572.7,2572.6,0.3937]
[1727304132591,0.38872,2572.7,2572.5,0.38874]
[1727304132788,0.4089,2572.6,2572.5,0.38874]
[1727304132990,0.78269,2572.9,2572.7,0.38871]
[1727304133189,1.19159,2572.9,2572.7,0.3887]
[1727304133390,1.19159,2572.9,2572.5,8.18388847]
[1727304133699,1.19159,2572.9,2572.7,0.38871]
[1727304133989,0.3887,2572.8,2572.7,0.38871]
[1727304135002,0.38871,2572.7,2572.6,0.38872]
[1727304138092,0.38874,2572.6,2572.4,0.77815]
[1727304138294,3.03,2572.5,2572.4,0.77815]
[1727304138686,0.38879,2572.2,2572.0,0.3888]
[1727304138886,3.03,2572.1,2571.7,1.00985172]
[1727304139092,3.41885,2571.8,2571.7,0.3761]
[1727304140100,3.03,2571.8,2571.7,0.3761]
[1727304140300,0.38887,2571.7,2571.5,0.4072]
[1727304140690,3.03,2571.8,2571.7,0.38886]
[1727304140895,3.41882,2572.0,2571.7,0.38885]
[1727304141090,3.41882,2572.0,2571.7,0.76495]
[1727304141499,3.03,2572.0,2571.8,0.38884]
[1727304141800,3.03,2572.0,2571.7,0.3761]
[1727304141998,4.77361,2572.1,2571.8,0.38883]
[1727304142189,3.2078,2572.4,2572.2,0.38878]
[1727304142389,3.2078,2572.4,2571.8,11.16551458]
[1727304142390,3.59656,2572.4,2572.3,0.3809]
[1727304143900,3.2078,2572.4,2572.3,0.76967]
[1727304144508,3.59657,2572.4,2572.1,0.38879]
[1727304144691,3.6137,2572.4,2572.2,0.38878]
[1727304145206,4.00246,2572.4,2572.1,0.7926]
[1727304145516,3.6137,2572.4,2572.2,0.38878]
[1727304147795,4.00246,2572.4,2572.1,0.79259]
[1727304148106,4.00246,2572.4,2572.1,0.4038]
[1727304149206,4.00246,2572.4,2572.2,0.38879]
[1727304149809,3.6137,2572.4,2572.2,0.38879]
[1727304150411,0.4059,2572.4,2572.1,0.4038]
[1727304150613,0.79466,2572.4,2572.2,0.38878]
[1727304150903,0.79466,2572.4,2572.1,0.4038]
[1727304150904,0.4059,2572.4,2572.1,0.4038]
[1727304151109,3.03,2572.3,2571.9,3.2078]
[1727304151407,3.03,2572.1,2571.7,0.38886]
[1727304151612,0.38885,2571.8,2571.7,0.3731]
[1727304151812,3.41884,2571.9,2571.7,0.3731]
[1727304152013,0.3849,2571.8,2571.7,0.76195]
[1727304152410,0.77375,2571.8,2571.5,0.38889]
[1727304152712,0.77375,2571.8,2571.6,8.46550426]
[1727304152713,0.77376,2571.8,2571.6,8.46550426]
[1727304152902,0.38886,2571.7,2571.6,8.07662426]
[1727304153102,0.38886,2571.7,2571.5,0.38889]
[1727304153306,0.3915,2571.6,2571.4,0.76199]
[1727304153608,0.3915,2571.6,2571.4,0.762]
[1727304153810,0.3915,2571.6,2571.4,0.3731]
[1727304154008,0.3915,2571.6,2571.5,0.38889]
[1727304154212,0.78038,2571.6,2571.4,0.762]
[1727304154515,0.3746,2571.5,2571.4,0.762]
[1727304155615,0.3746,2571.5,2571.4,0.3731]
[1727304156013,0.76349,2571.5,2571.4,0.3731]
[1727304156512,0.3746,2571.5,2571.3,0.38892]
[1727304157311,0.76349,2571.5,2571.2,3.59673]
[1727304157513,0.76349,2571.5,2571.3,0.38892]
[1727304157704,0.3746,2571.5,2571.3,0.38892]
[1727304158319,0.3746,2571.5,2570.5,1.00985172]
[1727304158320,6.9188,2571.4,2570.5,1.00985172]
[1727304158512,3.03,2570.6,2570.1,0.4039]
[1727304158718,3.03,2570.6,2569.9,3.2078]
[1727304159017,1.1394,2570.5,2570.3,7.94017502]
[1727304159205,0.38906,2570.4,2570.1,7.94017502]
[1727304159405,6.2378,2570.4,2570.0,0.4083]
[1727304159611,6.62686,2570.4,2570.0,0.4083]
[1727304160716,6.2378,2570.4,2570.0,0.79742]
[1727304161309,0.38908,2570.3,2569.8,0.38914]
[1727304161517,6.62687,2570.4,2569.6,6.6068]
[1727304161708,6.62687,2570.4,2569.8,0.38914]
[1727304162216,0.38908,2570.3,2569.8,0.38914]
[1727304162609,6.2378,2570.4,2569.8,0.38914]
[1727304162811,0.38907,2570.3,2569.8,0.38914]
[1727304163513,6.62687,2570.4,2569.9,0.38913]
[1727304163710,6.2378,2570.4,2570.1,0.3891]
[1727304164011,3.2078,2570.4,2570.3,0.38907]
[1727304164206,3.2078,2570.4,2569.9,3.2078]
[1727304164405,3.2078,2570.4,2570.3,0.38907]
[1727304164811,3.2078,2570.4,2570.1,0.3938]
[1727304165018,3.2078,2570.4,2570.3,0.38907]
[1727304165220,3.2078,2570.4,2570.2,0.38908]
[1727304165506,3.2078,2570.4,2570.3,0.38907]
[1727304166226,0.3724,2570.5,2570.4,0.38906]
[1727304166515,0.3724,2570.5,2570.2,11.54565168]
[1727304166720,6.62681,2570.8,2570.4,0.38905]
[1727304166920,7.0272,2570.8,2570.2,11.54565168]
[1727304167223,7.0272,2570.8,2570.4,0.38905]
[1727304167518,0.38901,2570.7,2570.2,11.54565168]
[1727304167720,6.6382,2570.8,2570.2,11.93473168]
[1727304167721,3.03,2570.6,2570.2,11.93473168]
[1727304167918,3.03,2570.6,2570.4,0.38906]
[1727304168415,0.38905,2570.5,2570.2,11.93474168]
[1727304168618,0.38907,2570.3,2570.2,3.2078]
[1727304169016,0.78947,2570.3,2570.2,3.2078]
[1727304170220,0.4004,2570.3,2570.2,3.2078]
[1727304170710,0.4004,2570.3,2570.2,3.59689]
[1727304173223,3.03,2570.6,2570.3,0.38907]
[1727304173224,0.38904,2570.6,2570.3,0.38907]
[1727304173427,0.38905,2570.5,2570.3,0.79157]
[1727304174327,0.38906,2570.4,2570.3,0.4025]
[1727304174522,0.38906,2570.4,2570.2,3.59688]
[1727304175320,0.38905,2570.5,2570.3,0.38907]
[1727304175918,0.38905,2570.5,2570.2,3.2078]
[1727304176126,0.38906,2570.4,2570.2,3.59689]
[1727304176327,0.3997,2570.6,2570.3,0.38907]
[1727304176328,0.38905,2570.5,2570.3,0.38907]
[1727304177030,0.38906,2570.4,2570.2,3.59688]
[1727304177230,0.38906,2570.4,2569.0,0.105]
[1727304177231,3.2078,2570.3,2569.0,0.105]
[1727304177420,3.2078,2570.3,2568.7,1.60477759]
[1727304177421,3.03,2569.3,2568.8,3.2078]
[1727304177620,3.41929,2568.9,2568.8,3.2078]
[1727304177828,3.03,2568.9,2568.4,3.2078]
[1727304178132,3.03,2568.8,2568.4,11.60969514]
[1727304178522,3.03,2568.8,2568.4,3.2078]
[1727304178922,0.38933,2568.7,2568.4,3.2078]
[1727304179132,3.03,2568.8,2568.4,3.2078]
[1727304179133,0.38933,2568.6,2568.4,3.2078]
[1727304179321,3.03,2568.8,2568.4,3.2078]
[1727304179523,3.41931,2568.8,2568.4,3.59716]
[1727304179729,3.03,2568.8,2568.4,3.59716]
[1727304179929,3.41931,2568.8,2568.4,3.59716]
[1727304180535,3.03,2568.8,2568.4,3.2078]
[1727304180730,3.03,2568.9,2568.5,8.66088466]
[1727304181026,3.03,2568.9,2568.8,0.3893]
[1727304181429,3.03,2568.9,2568.6,0.38933]
[1727304181732,0.38935,2568.5,2568.1,3.2078]
[1727304181920,3.03,2568.6,2568.1,3.2078]
[1727304181921,3.03,2568.2,2568.1,3.2078]
[1727304182121,3.2078,2568.9,2568.1,3.2078]
[1727304182321,3.2078,2568.9,2568.4,0.38936]
[1727304182626,3.2078,2568.9,2568.5,8.62682539]
[1727304182627,6.2378,2568.9,2568.5,8.62682539]
[1727304182831,3.03,2568.7,2568.5,8.62682539]
[1727304183024,3.03,2568.7,2568.5,0.3816]
[1727304183219,3.03,2568.7,2568.5,0.77094]
[1727304183424,3.03,2568.7,2568.5,0.3816]
[1727304183623,3.03,2568.7,2568.5,0.77094]
[1727304184035,3.03,2568.7,2568.6,0.38933]
[1727304184337,3.03,2568.7,2568.5,0.77094]
[1727304184737,6.9228,2568.7,2568.1,3.2078]
[1727304184936,3.2078,2568.9,2567.4,0.3818]
[1727304184937,3.59719,2568.3,2567.4,0.3818]
[1727304185235,3.03,2568.2,2567.7,0.4271432]
[1727304185536,3.03,2568.2,2567.7,0.0376832]
[1727304185834,3.2078,2568.3,2567.9,0.38942]
[1727304186136,6.6188,2568.6,2567.8,11.25904273]
[1727304186323,3.411,2568.6,2568.1,0.3894]
[1727304186632,3.411,2568.6,2568.2,0.77119]
[1727304186833,3.411,2568.6,2568.3,0.38938]
[1727304187222,3.03,2568.6,2568.3,0.38938]
[1727304187426,3.03,2568.6,2568.4,0.38935]
[1727304187731,3.59708,2569.0,2568.5,0.38934]
[1727304187732,3.03,2568.8,2568.5,0.38934]
[1727304188031,3.03,2568.8,2568.5,0.38935]
[1727304188229,3.03,2568.8,2568.3,12.47194443]
[1727304188428,3.03,2568.8,2568.5,0.38934]
[1727304188732,3.03,2568.8,2568.6,0.38933]
[1727304188931,3.03,2568.8,2568.7,0.3779]
[1727304189548,3.03,2568.8,2568.7,0.76722]
[1727304189831,3.03,2568.8,2568.7,4.2707]
[1727304190035,3.03,2568.8,2568.7,0.3779]
[1727304191023,3.2078,2569.0,2568.7,0.3779]
[1727304191536,3.2078,2569.0,2568.8,0.38929]
[1727304192736,3.80383,2569.3,2568.9,0.38929]
[1727304193240,3.4146,2569.3,2569.1,0.38925]
[1727304193736,3.4146,2569.3,2569.2,0.3756]
[1727304194041,3.80383,2569.3,2569.2,0.3756]
[1727304195942,7.3066,2569.3,2568.7,3.2078]
[1727304196148,0.38929,2568.9,2568.7,3.2078]
[1727304197035,0.38927,2569.0,2568.7,3.2078]
[1727304197339,3.41926,2569.1,2568.8,0.38929]
[1727304197538,0.38924,2569.2,2569.0,0.38926]
[1727304197841,0.38924,2569.2,2569.1,0.3848]
[1727304198338,3.80383,2569.3,2569.1,0.3848]
[1727304198537,0.38924,2569.2,2569.1,0.3848]
[1727304198841,3.2078,2569.8,2569.3,0.38923]
[1727304199047,3.5899,2569.8,2569.3,0.38921]
[1727304199239,3.5899,2569.8,2569.2,0.3975]
[1727304199240,3.41917,2569.7,2569.2,0.3975]
[1727304199940,3.41917,2569.7,2569.4,0.3892]
[1727304200337,3.03,2569.7,2569.2,0.3975]
[1727304200738,3.03,2569.7,2569.5,0.38919]
[1727304200947,3.03,2569.7,2569.6,0.3983]
[1727304201250,3.03,2569.7,2569.6,0.78748]
[1727304202245,3.03,2569.7,2569.2,0.3975]
[1727304202447,3.41921,2569.4,2569.2,1.18503]
[1727304203340,3.03,2569.4,2569.3,0.38923]
[1727304203542,3.03,2569.6,2569.4,0.38921]
[1727304204140,3.41918,2569.6,2569.4,0.38921]
[1727304205044,3.41918,2569.6,2569.2,0.7958]
[1727304205045,0.3892,2569.5,2569.2,0.7958]
[1727304205246,0.3892,2569.5,2569.2,1.18503]
[1727304205561,0.38923,2569.3,2569.1,0.38925]
[1727304205843,0.38923,2569.3,2569.1,8.54775359]
[1727304206244,3.41922,2569.4,2569.1,0.38925]
[1727304206439,0.38923,2569.3,2569.1,0.38925]
[1727304206644,3.41922,2569.4,2569.2,8.15850359]
[1727304207046,3.41922,2569.4,2569.1,8.64552402]
[1727304207453,3.41922,2569.4,2569.2,0.38924]
[1727304207647,0.38923,2569.3,2569.1,0.38925]
[1727304207854,0.38923,2569.3,2569.2,8.25627402]
[1727304208046,3.41922,2569.4,2569.1,8.25627402]
[1727304208347,3.03,2569.4,2569.1,0.38925]
[1727304208655,3.41922,2569.4,2569.0,0.3698]
[1727304208956,3.41922,2569.4,2569.2,0.38923]
[1727304209254,0.38923,2569.3,2569.1,0.38925]
[1727304209451,3.03,2569.4,2569.2,0.38923]
[1727304209452,3.41922,2569.4,2569.2,0.38923]
[1727304209956,3.2078,2569.5,2569.4,0.38921]
[1727304210145,3.03,2569.8,2569.1,3.2078]
[1727304210146,3.2078,2569.8,2569.7,0.38916]
[1727304211147,3.2078,2569.8,2569.4,0.7673]
[1727304211348,3.2078,2569.8,2569.5,0.3892]
[1727304211550,3.41919,2569.6,2569.4,0.38921]
[1727304211852,3.41919,2569.6,2569.4,0.3892]
[1727304212251,3.03,2569.6,2569.5,0.3892]
[1727304213449,3.2078,2569.8,2569.3,1.36685]
[1727304213761,3.2078,2569.8,2569.7,0.38916]
[1727304216150,3.2078,2569.8,2569.7,14.38736]
[1727304216351,2.56909668,2570.6,2569.7,25.25612155]
[1727304216352,0.09,2570.6,2569.7,25.25612155]
[1727304216652,0.38908,2570.3,2569.9,0.38912]
[1727304216857,0.38908,2570.3,2570.0,0.38911]
[1727304217153,3.59687,2570.4,2570.1,0.3891]
[1727304217350,3.4166,2570.5,2570.1,0.3891]
[1727304217651,3.2078,2570.4,2570.1,0.3891]
[1727304218247,3.2078,2570.4,2569.9,12.51573943]
[1727304218448,3.03,2570.3,2569.9,8.03880915]
[1727304218649,6.62691,2570.1,2569.9,8.03880915]
[1727304219555,6.2378,2570.1,2569.9,8.03880915]
[1727304219748,3.41911,2570.1,2569.9,8.03880915]
[1727304220652,3.03,2570.1,2569.9,8.42793915]
[1727304220961,3.03,2570.1,2569.9,8.03880915]
[1727304221151,6.2378,2570.1,2569.9,8.42793915]
[1727304221348,3.03,2570.1,2569.9,8.42793915]
[1727304221659,3.03,2570.3,2569.9,8.03880915]
[1727304222160,3.97337,2570.4,2570.1,0.3891]
[1727304222361,3.97337,2570.4,2570.2,0.3906]
[1727304222545,3.59687,2570.4,2570.2,0.3906]
[1727304223370,3.2078,2569.4,2568.6,4.07464675]
[1727304223662,0.97334,2568.6,2567.7,0.0376832]
[1727304223955,4.61725,2567.9,2567.8,8.08249642]
[1727304224255,7.64725,2568.0,2567.8,8.08249642]
[1727304224463,9.15475798,2568.0,2567.8,8.08249642]
[1727304224664,4.61725,2567.9,2567.7,0.0376832]
[1727304225050,4.61725,2567.9,2567.8,8.26564716]
[1727304225255,4.61725,2567.9,2567.7,0.0376832]
[1727304225457,5.62222712,2567.9,2567.7,0.0376832]
[1727304225653,5.62222712,2567.9,2567.8,8.26564716]
[1727304225859,4.61725,2567.9,2567.8,8.26564716]
[1727304226255,5.00669,2567.9,2567.8,8.26564716]
[1727304226450,5.00669,2567.9,2567.7,0.0376832]
[1727304226451,0.38945,2567.8,2567.7,0.0376832]
[1727304226650,6.89206444,2567.8,2567.7,0.0376832]
[1727304227456,6.3880586,2567.8,2567.7,0.0376832]
[1727304228063,5.3854,2567.8,2567.7,0.0376832]
[1727304228564,5.0067,2567.8,2567.7,0.0376832]
[1727304229464,4.61725,2567.8,2567.7,0.0376832]
[1727304235758,5.0067,2567.8,2567.7,0.0376832]
[1727304235953,4.61725,2567.8,2567.7,0.0376832]
[1727304236866,5.0067,2567.8,2567.7,0.0376832]
[1727304237075,4.61725,2567.8,2567.7,0.0376832]
[1727304238461,0.395,2568.3,2567.7,0.0376832]
[1727304238662,0.38945,2567.9,2567.7,0.0376832]
[1727304238870,4.61725,2567.8,2567.7,0.0376832]